bitfinex/quotes_BTCUSD_20240908
["timestamp","ask_amount","ask_price","bid_price","bid_amount"]
[1725834471864,0.000816,55333.0,55332.0,1.38117]
[1725834472086,0.02834532,55335.0,55334.0,0.722882]
[1725834472362,0.00082,55350.0,55349.0,0.802711]
[1725834472630,0.00082,55350.0,55349.0,1.091785]
[1725834472903,0.00082,55350.0,55349.0,1.380859]
[1725834474207,0.00082,55350.0,55349.0,1.385859]
[1725834474639,0.00082,55350.0,55349.0,1.091785]
[1725834474859,0.00082,55350.0,55349.0,0.523637]
[1725834475286,0.00082,55350.0,55349.0,0.802711]
[1725834475506,0.00082,55350.0,55349.0,0.816711]
[1725834475735,0.00082,55350.0,55349.0,0.802711]
[1725834475944,0.00082,55350.0,55349.0,0.527637]
[1725834476175,0.00082,55350.0,55349.0,0.826711]
[1725834476395,0.00082,55350.0,55349.0,0.802711]
[1725834476617,0.00082,55350.0,55349.0,0.816711]
[1725834476802,0.00082,55350.0,55349.0,0.541637]
[1725834477694,0.00082,55350.0,55349.0,1.408859]
[1725834478110,0.00082,55350.0,55349.0,1.697933]
[1725834478540,0.00082,55350.0,55349.0,1.6836631]
[1725834478788,0.00082,55350.0,55349.0,1.6976631]
[1725834478997,0.00082,55350.0,55349.0,1.6836631]
[1725834479203,0.00082,55350.0,55349.0,1.3945891]
[1725834479634,0.00082,55350.0,55349.0,1.3805891]
[1725834479893,0.00082,55350.0,55349.0,1.3945891]
[1725834480098,0.00082,55350.0,55349.0,1.4085891]
[1725834480303,0.00082,55350.0,55349.0,1.3805891]
[1725834480513,0.00082,55350.0,55349.0,1.3945891]
[1725834480943,0.00082,55350.0,55349.0,1.1055151]
[1725834481187,0.00082,55350.0,55349.0,1.0915151]
[1725834481399,0.00082,55350.0,55349.0,1.1055151]
[1725834481616,0.00082,55350.0,55349.0,1.1195151]
[1725834481871,0.00082,55350.0,55349.0,1.44193361]
[1725834482089,0.00082,55350.0,55349.0,1.3945891]
[1725834482310,0.00082,55350.0,55349.0,1.4085891]
[1725834482522,0.00082,55350.0,55349.0,1.3945891]
[1725834482957,0.00082,55350.0,55349.0,1.1195151]
[1725834483167,0.00082,55350.0,55349.0,1.0915151]
[1725834483381,0.00082,55350.0,55349.0,1.3905891]
[1725834483604,0.00082,55350.0,55349.0,1.74100761]
[1725834483819,0.000815,55369.0,55368.0,1.390712]
[1725834484277,0.000815,55369.0,55368.0,1.679687]
[1725834484982,0.00082,55372.0,55371.0,2.02563351]
[1725834485439,0.00082,55379.0,55373.0,1.31027]
[1725834485667,0.00082,55379.0,55373.0,1.68317]
[1725834486094,0.00082,55379.0,55373.0,1.394221]
[1725834487557,0.00082,55379.0,55373.0,1.398221]
[1725834488463,0.00082,55379.0,55373.0,1.4119511]
[1725834488880,0.00082,55379.0,55373.0,1.3979511]
[1725834489098,0.00082,55379.0,55373.0,1.4119511]
[1725834489308,0.00082,55379.0,55373.0,1.3979511]
[1725834489525,0.144432,55390.0,55383.0,0.144447]
[1725834489743,0.288871,55388.0,55373.0,0.4009]
[1725834489982,0.144457,55380.0,55373.0,0.2368]
[1725834490190,0.288889,55385.0,55377.0,0.144463]
[1725834490412,0.0858,55389.0,55374.0,0.288943]
[1725834490413,0.288871,55388.0,55374.0,0.288943]
[1725834490681,0.288871,55388.0,55377.0,0.288927]
[1725834490893,0.288863,55390.0,55378.0,0.144461]
[1725834491107,0.144442,55386.0,55380.0,0.144456]
[1725834491322,0.144436,55388.0,55378.0,0.288918]
[1725834491536,0.0858,55396.0,55379.0,0.288918]
[1725834491757,0.0858,55396.0,55373.0,0.014]
[1725834491758,0.0858,55396.0,55380.0,0.21501086]
[1725834491987,0.03,55409.0,55380.0,0.21501086]
[1725834491988,0.0858,55405.0,55382.0,0.2114]
[1725834492199,0.144391,55405.0,55384.0,0.2114]
[1725834492408,0.288762,55409.0,55395.0,0.2114]
[1725834492636,0.0858,55414.0,55405.0,0.433173]
[1725834492843,0.0858,55414.0,55405.0,0.144391]
[1725834493053,0.0858,55414.0,55403.0,0.28879]
[1725834493274,0.144372,55413.0,55405.0,0.144391]
[1725834493494,0.0858,55414.0,55396.0,0.1647]
[1725834493723,0.144385,55408.0,55400.0,0.288808]
[1725834494018,0.288772,55407.0,55397.0,0.28882]
[1725834494263,0.001,55396.0,55395.0,0.2114]
[1725834494493,0.288799,55402.0,55395.0,0.2114]
[1725834494707,0.288808,55401.0,55396.0,0.013]
[1725834494924,0.144409,55398.0,55391.0,0.288854]
[1725834495135,0.288795,55403.0,55391.0,0.288854]
[1725834495343,0.288798,55402.0,55395.0,0.144417]
[1725834495574,0.288819,55398.0,55390.0,0.346529]
[1725834495793,0.144418,55395.0,55390.0,0.2021]
[1725834496003,0.288806,55401.0,55379.0,0.2021]
[1725834496004,0.32241851,55391.0,55379.0,0.2021]
[1725834496216,0.0858,55397.0,55383.0,0.55430836]
[1725834496217,0.40821851,55397.0,55383.0,0.55430836]
[1725834496424,0.144434,55389.0,55383.0,0.144447]
[1725834496632,0.288854,55392.0,55379.0,0.2021]
[1725834496843,0.144439,55387.0,55381.0,0.144451]
[1725834497056,0.144445,55385.0,55379.0,0.346558]
[1725834497269,0.144445,55385.0,55380.0,0.144456]
[1725834497482,0.0858,55397.0,55379.0,0.2021]
[1725834497483,0.288866,55389.0,55379.0,0.2021]
[1725834497688,0.288833,55396.0,55379.0,0.2021]
[1725834497689,0.17274015,55392.0,55380.0,0.00361101]
[1725834497901,0.144432,55390.0,55384.0,0.144444]
[1725834498174,0.144432,55390.0,55380.0,0.00361101]
[1725834498175,0.144431,55390.0,55385.0,0.144441]
[1725834498387,0.144433,55389.0,55382.0,0.14445]
[1725834498600,0.31716515,55392.0,55379.0,0.2161]
[1725834498807,0.144429,55391.0,55382.0,0.288899]
[1725834499015,0.144431,55390.0,55385.0,0.144443]
[1725834499222,0.02831515,55392.0,55391.0,0.144427]
[1725834499434,0.02831515,55392.0,55391.0,0.634382]
[1725834499652,0.02831515,55392.0,55391.0,1.374292]
[1725834500076,0.00082,55406.0,55402.0,0.288793]
[1725834500359,0.00082,55406.0,55405.0,0.433173]
[1725834500581,0.00082,55406.0,55405.0,1.72705551]
[1725834500812,0.00082,55406.0,55405.0,2.04583751]
[1725834501030,0.00082,55406.0,55405.0,1.404637]
[1725834501263,0.00082,55406.0,55405.0,1.115855]
[1725834501711,0.00082,55406.0,55405.0,0.841073]
[1725834501941,0.00082,55406.0,55405.0,0.3939]
[1725834502201,0.00082,55406.0,55405.0,0.4079]
[1725834502420,0.00082,55406.0,55405.0,0.2365]
[1725834502638,0.00082,55406.0,55405.0,0.014]
[1725834503112,0.00082,55406.0,55405.0,0.163391]
[1725834503322,0.00082,55406.0,55405.0,0.019]
[1725834503545,0.00082,55406.0,55405.0,0.014]
[1725834503968,0.00082,55406.0,55405.0,0.154391]
[1725834504189,0.145208,55406.0,55405.0,0.01]
[1725834504423,0.145208,55406.0,55405.0,0.024]
[1725834504424,0.00082,55406.0,55405.0,0.024]
[1725834504640,0.00082,55406.0,55405.0,0.443173]
[1725834504856,0.00082,55406.0,55405.0,0.745955]
[1725834505063,0.00082,55406.0,55405.0,1.034737]
[1725834505273,0.00082,55406.0,55405.0,1.381237]
[1725834505494,0.00082,55406.0,55405.0,1.116455]
[1725834505702,0.00082,55406.0,55405.0,1.102455]
[1725834505934,0.00082,55406.0,55405.0,0.813673]
[1725834506156,0.00082,55406.0,55405.0,0.514891]
[1725834506378,0.00082,55406.0,55405.0,0.219]
[1725834506876,0.00082,55406.0,55405.0,0.209]
[1725834507118,0.00082,55406.0,55405.0,0.014]
[1725834507541,0.433985,55406.0,55405.0,0.014]
[1725834507749,0.145208,55406.0,55405.0,0.028]
[1725834507962,0.00082,55406.0,55405.0,0.158391]
[1725834508179,0.144379,55410.0,55405.0,0.158391]
[1725834508386,0.144375,55412.0,55406.0,0.144388]
[1725834508592,0.32241851,55421.0,55404.0,0.01]
[1725834508815,0.144376,55411.0,55405.0,0.014]
[1725834509025,0.288747,55412.0,55405.0,0.028]
[1725834509209,0.288753,55411.0,55404.0,0.01]
[1725834509453,0.288753,55411.0,55405.0,0.014]
[1725834509657,0.144381,55409.0,55406.0,0.01]
[1725834509869,0.32241851,55415.0,55406.0,0.01]
[1725834510072,0.144381,55409.0,55405.0,0.014]
[1725834510282,0.144383,55408.0,55405.0,0.014]
[1725834510492,0.144388,55406.0,55405.0,0.014]
[1725834510702,0.144379,55410.0,55405.0,0.014]
[1725834510922,0.288745,55413.0,55404.0,0.016]
[1725834511385,0.32241851,55415.0,55404.0,0.016]
[1725834511386,0.144385,55408.0,55404.0,0.016]
[1725834511603,0.28871,55419.0,55404.0,0.016]
[1725834511832,0.28976767,55426.0,55407.0,0.01]
[1725834511833,0.0002699,55410.0,55407.0,0.01]
[1725834512053,0.0002699,55410.0,55407.0,0.154385]
[1725834512267,0.0002699,55410.0,55407.0,0.01]
[1725834512509,0.144388,55406.0,55405.0,0.014]
[1725834512715,0.0002699,55410.0,55405.0,0.15839]
[1725834513007,0.144388,55406.0,55405.0,0.014]
[1725834513222,0.0002699,55410.0,55409.0,0.01]
[1725834513430,0.1446479,55410.0,55409.0,0.01]
[1725834513643,0.0002699,55410.0,55409.0,0.01]
[1725834513848,0.1437479,55410.0,55409.0,0.01]
[1725834514277,0.288736,55414.0,55409.0,0.01]
[1725834514489,0.288719,55418.0,55409.0,0.01]
[1725834514697,0.144358,55418.0,55411.0,0.144373]
[1725834514920,0.02874046,55425.0,55417.0,0.288718]
[1725834515131,0.02874046,55425.0,55424.0,0.154341]
[1725834515345,0.00043737,55425.0,55424.0,0.01]
[1725834515582,0.00043737,55425.0,55424.0,0.154341]
[1725834515788,0.00043737,55425.0,55424.0,0.01]
[1725834515971,0.00043737,55425.0,55424.0,0.443024]
[1725834516219,0.00043737,55425.0,55424.0,0.933207]
[1725834516470,0.00082,55430.0,55414.0,0.01]
[1725834516471,0.00082,55430.0,55427.0,0.933167]
[1725834516681,0.00082,55430.0,55427.0,0.927287]
[1725834517351,0.12,55435.0,55434.0,1.099177]
[1725834517574,0.12,55435.0,55434.0,1.099297]
[1725834518464,0.12,55435.0,55434.0,0.810666]
[1725834518704,0.12,55435.0,55434.0,0.37772]
[1725834518909,0.12,55435.0,55434.0,0.21562]
[1725834519131,0.12,55435.0,55434.0,0.01012]
[1725834519636,0.12,55435.0,55434.0,0.02412]
[1725834519887,0.12,55435.0,55434.0,0.01312]
[1725834520376,0.12,55435.0,55434.0,0.154435]
[1725834520649,0.12,55435.0,55434.0,0.443066]
[1725834520855,0.12,55435.0,55434.0,0.01212]
[1725834521092,0.12,55435.0,55434.0,0.00212]
[1725834521863,0.12,55435.0,55434.0,0.152435]
[1725834522103,0.12,55435.0,55434.0,0.721697]
[1725834522339,0.12,55435.0,55434.0,0.961897]
[1725834522571,0.12,55435.0,55434.0,1.116697]
[1725834522804,0.12,55435.0,55434.0,1.106697]
[1725834523040,0.12,55435.0,55434.0,0.829066]
[1725834523292,0.12,55435.0,55434.0,1.109697]
[1725834523557,0.12,55435.0,55434.0,1.120697]
[1725834524030,0.12,55435.0,55434.0,1.130697]
[1725834524812,0.12,55435.0,55434.0,1.116697]
[1725834525088,0.12,55435.0,55434.0,1.717959]
[1725834525336,0.0282866,55446.0,55434.0,1.717959]
[1725834525337,0.0282866,55446.0,55445.0,0.548587]
[1725834525578,0.01130588,55448.0,55447.0,1.01997]
[1725834525753,0.01130588,55448.0,55447.0,1.24359]
[1725834526036,0.01130588,55448.0,55447.0,0.955027]
[1725834526294,0.01130588,55448.0,55447.0,1.24359]
[1725834526547,0.01130588,55448.0,55447.0,0.666464]
[1725834526780,0.01130588,55448.0,55447.0,0.955027]
[1725834527021,0.01130588,55448.0,55447.0,0.969027]
[1725834527539,0.01130588,55448.0,55447.0,0.955027]
[1725834527748,0.01130588,55448.0,55447.0,0.377901]
[1725834527963,0.01130588,55448.0,55447.0,0.666464]
[1725834528177,0.01130588,55448.0,55447.0,0.955027]
[1725834528384,0.01130588,55448.0,55447.0,0.680464]
[1725834528605,0.01130588,55448.0,55447.0,0.377901]
[1725834528810,0.01130588,55448.0,55447.0,0.969027]
[1725834529019,0.01130588,55448.0,55447.0,0.694464]
[1725834529225,0.01130588,55448.0,55447.0,0.680464]
[1725834529642,0.01212088,55448.0,55447.0,0.983027]
[1725834529844,0.01212088,55448.0,55447.0,0.405901]
[1725834530056,0.01212088,55448.0,55447.0,0.680464]
[1725834530528,0.01212088,55448.0,55447.0,0.405901]
[1725834530761,0.00712088,55448.0,55447.0,0.405901]
[1725834530976,0.15139988,55448.0,55447.0,0.01412]
[1725834531195,0.15139988,55448.0,55447.0,0.014]
[1725834531196,0.31730395,55448.0,55447.0,0.014]
[1725834531413,0.1252,55445.0,55424.0,0.01]
[1725834531619,0.144354,55419.0,55418.0,0.55430836]
[1725834531833,0.144354,55420.0,55418.0,0.56430836]
[1725834532099,0.1252,55423.0,55409.0,0.288759]
[1725834532100,0.269544,55423.0,55422.0,0.01]
[1725834532543,0.288697,55422.0,55417.0,0.01]
[1725834532746,0.1252,55423.0,55411.0,0.01]
[1725834532747,0.288732,55415.0,55411.0,0.01]
[1725834532951,0.1252,55423.0,55411.0,0.01]
[1725834533160,0.144352,55420.0,55413.0,0.01]
[1725834533370,0.001,55420.0,55413.0,0.01]
[1725834533586,0.001,55420.0,55413.0,0.154368]
[1725834534000,0.145353,55420.0,55413.0,0.01]
[1725834534202,0.144356,55419.0,55413.0,0.01]
[1725834534356,0.144359,55418.0,55413.0,0.01]
[1725834534763,0.288715,55418.0,55413.0,0.01]
[1725834534938,0.144367,55414.0,55413.0,0.013]
[1725834535138,0.001,55420.0,55413.0,0.013]
[1725834535371,0.001,55420.0,55414.0,0.2208]
[1725834535712,0.32241851,55429.0,55417.0,0.01]
[1725834535713,0.001,55418.0,55417.0,0.01]
[1725834536650,0.145357,55418.0,55417.0,0.01]
[1725834537218,0.145357,55418.0,55406.0,0.2208]
[1725834537219,0.001,55418.0,55413.0,0.013]
[1725834537422,0.433102,55414.0,55413.0,0.003]
[1725834537597,0.433102,55414.0,55412.0,0.01]
[1725834537598,0.14437,55413.0,55412.0,0.01]
[1725834538168,0.002,55418.0,55412.0,0.01]
[1725834538169,0.144365,55415.0,55412.0,0.01]
[1725834538370,0.02830007,55413.0,55412.0,0.01]
[1725834538828,0.75015007,55413.0,55412.0,0.01]
[1725834539048,0.64145858,55413.0,55412.0,0.01]
[1725834539258,0.64145858,55413.0,55404.0,0.00163]
[1725834539259,0.47791858,55413.0,55408.0,0.01]
[1725834539466,0.433158,55407.0,55406.0,0.01]
[1725834539894,0.144386,55407.0,55406.0,0.01]
[1725834540101,0.433158,55407.0,55406.0,0.01]
[1725834540350,0.433173,55405.0,55404.0,0.00163]
[1725834540550,0.721955,55405.0,55404.0,0.00163]
[1725834541051,0.02830375,55408.0,55405.0,0.2101]
[1725834541358,0.02830375,55408.0,55406.0,0.147387]
[1725834541579,0.02830375,55408.0,55405.0,0.2101]
[1725834541824,0.02830375,55408.0,55404.0,0.00163]
[1725834542061,0.434173,55405.0,55404.0,0.00663]
[1725834542283,0.144391,55405.0,55404.0,0.00163]
[1725834542575,0.721955,55405.0,55404.0,0.00163]
[1725834542879,1.135937,55405.0,55404.0,0.00163]
[1725834543140,1.245937,55405.0,55404.0,0.00163]
[1725834543370,0.32241851,55395.0,55388.0,0.01]
[1725834543632,0.144433,55389.0,55388.0,0.01]
[1725834543862,0.144453,55381.0,55380.0,0.001632]
[1725834544063,0.144453,55381.0,55380.0,0.011632]
[1725834544285,0.43336,55381.0,55380.0,0.011632]
[1725834544493,0.144453,55381.0,55380.0,0.001632]
[1725834544697,0.288878,55387.0,55383.0,0.01]
[1725834544928,0.14444,55387.0,55381.0,0.144453]
[1725834545138,0.14444,55387.0,55383.0,0.01]
[1725834545139,0.144446,55384.0,55383.0,0.01]
[1725834545609,0.144442,55386.0,55383.0,0.01]
[1725834545851,0.02831512,55388.0,55387.0,0.73219]
[1725834546341,0.02831512,55388.0,55387.0,1.217866]
[1725834546568,0.32241851,55411.0,55400.0,0.2168]
[1725834546781,0.1252,55414.0,55402.0,0.01]
[1725834546982,0.144391,55405.0,55404.0,0.01]
[1725834547490,0.144385,55408.0,55404.0,0.005]
[1725834547859,0.288762,55409.0,55404.0,0.005]
[1725834548063,0.288767,55408.0,55404.0,0.005]
[1725834548708,0.32241851,55411.0,55404.0,0.001]
[1725834548709,0.288762,55409.0,55404.0,0.001]
[1725834548896,0.75559151,55405.0,55404.0,0.001]
[1725834549105,0.88079151,55405.0,55404.0,0.001]
[1725834549516,1.16957351,55405.0,55404.0,0.001]
[1725834549727,1.19788186,55405.0,55404.0,0.001]
[1725834550101,0.02830835,55405.0,55400.0,0.144402]
[1725834550332,0.02830835,55405.0,55397.0,0.005]
[1725834550333,0.31709335,55405.0,55397.0,0.005]
[1725834550535,0.31709335,55405.0,55400.0,0.144403]
[1725834550536,0.02830835,55405.0,55400.0,0.144403]
[1725834550738,0.02830835,55405.0,55397.0,0.005]
[1725834550967,0.02830835,55405.0,55404.0,1.121467]
[1725834551247,0.02830835,55405.0,55404.0,1.414254]
[1725834551418,0.02830835,55405.0,55404.0,1.410254]
[1725834551871,0.02830835,55405.0,55404.0,1.121467]
[1725834552510,0.02830835,55405.0,55404.0,0.83968]
[1725834552784,0.02830835,55405.0,55404.0,0.2381]
[1725834553003,0.02830835,55405.0,55404.0,0.953067]
[1725834553208,0.02830835,55405.0,55404.0,0.66428]
[1725834553406,0.02930835,55405.0,55404.0,0.68528]
[1725834553611,0.02830835,55405.0,55404.0,0.67328]
[1725834553836,0.17269935,55405.0,55404.0,0.2351]
[1725834554050,0.46148135,55405.0,55404.0,0.009]
[1725834554260,0.79640989,55405.0,55404.0,0.009]
[1725834554471,0.79740989,55405.0,55404.0,0.012]
[1725834554681,0.79740989,55405.0,55404.0,0.017]
[1725834554682,0.02930835,55405.0,55404.0,0.017]
[1725834554883,0.02930835,55405.0,55404.0,0.012]
[1725834555134,0.03030835,55405.0,55404.0,0.025]
[1725834555344,0.02930835,55405.0,55404.0,0.01963]
[1725834555671,0.03030835,55405.0,55404.0,0.02763]
[1725834555882,0.03030835,55405.0,55404.0,0.67551]
[1725834556107,0.02930835,55405.0,55404.0,1.417284]
[1725834556314,0.02830835,55405.0,55404.0,1.404284]
[1725834556588,0.02930835,55405.0,55404.0,1.412284]
[1725834556715,0.03030835,55405.0,55404.0,1.135497]
[1725834557421,0.02930835,55405.0,55404.0,1.123497]
[1725834557618,0.02830835,55405.0,55404.0,1.115497]
[1725834557871,0.02930835,55405.0,55404.0,1.129497]
[1725834558047,0.02930835,55405.0,55404.0,1.136497]
[1725834558460,0.02930835,55405.0,55404.0,1.129497]
[1725834558655,0.02930835,55405.0,55404.0,0.559923]
[1725834558916,0.02930835,55405.0,55404.0,0.387723]
[1725834559149,0.02930835,55405.0,55404.0,0.67651]
[1725834559309,0.02930835,55405.0,55404.0,0.387723]
[1725834560080,0.02930835,55405.0,55404.0,0.67651]
[1725834560490,0.02930835,55405.0,55404.0,0.965297]
[1725834560687,0.02930835,55405.0,55404.0,1.254084]
[1725834562477,0.02930835,55405.0,55404.0,0.67651]
[1725834562750,0.02930835,55405.0,55404.0,0.02863]
[1725834562751,0.75126335,55405.0,55404.0,0.02863]
[1725834562989,0.46248135,55405.0,55404.0,0.02863]
[1725834563426,0.75126335,55405.0,55404.0,0.02863]
[1725834564111,0.75126335,55405.0,55404.0,0.02363]
[1725834564112,1.18939094,55405.0,55404.0,0.02363]
[1725834564314,1.19939094,55405.0,55404.0,0.02363]
[1725834564655,0.144427,55391.0,55390.0,0.005]
[1725834564866,0.46684151,55393.0,55390.0,0.005]
[1725834565074,0.32241851,55399.0,55391.0,0.005]
[1725834565295,0.144427,55391.0,55390.0,0.005]
[1725834565536,0.02831227,55393.0,55392.0,0.144425]
[1725834565748,0.288814,55399.0,55391.0,0.144427]
[1725834565989,0.01,55407.0,55390.0,0.005]
[1725834565990,0.004,55391.0,55390.0,0.005]
[1725834566422,0.004,55391.0,55390.0,0.14943]
[1725834567064,0.01,55399.0,55392.0,0.005]
[1725834567268,0.288825,55397.0,55392.0,0.005]
[1725834567472,0.144417,55395.0,55392.0,0.005]
[1725834567698,0.144422,55393.0,55392.0,0.004]
[1725834568338,0.854112,55393.0,55392.0,0.007]
[1725834568714,0.722137,55391.0,55390.0,0.00163]
[1725834569363,0.75045172,55391.0,55390.0,0.00163]
[1725834569968,1.03930672,55391.0,55390.0,0.00163]
[1725834570173,0.75045172,55391.0,55390.0,0.00163]
[1725834571677,0.75100982,55391.0,55390.0,0.00163]
[1725834571882,0.02831472,55391.0,55390.0,0.14606]
[1725834572087,0.02831472,55391.0,55390.0,0.00163]
[1725834572088,0.17274172,55391.0,55390.0,0.00163]
[1725834572295,0.17574172,55391.0,55390.0,0.00163]
[1725834572510,0.17574172,55391.0,55381.0,0.2096]
[1725834572511,0.03131472,55391.0,55381.0,0.2096]
[1725834572730,0.144453,55381.0,55380.0,0.001632]
[1725834572950,0.722267,55381.0,55380.0,0.001632]
[1725834573163,0.43336,55381.0,55380.0,0.001632]
[1725834573805,0.43436,55381.0,55380.0,0.001632]
[1725834574280,0.43336,55381.0,55380.0,0.001632]
[1725834574498,0.43436,55381.0,55380.0,0.001632]
[1725834575766,1.013174,55381.0,55380.0,0.009632]
[1725834575976,1.013174,55381.0,55362.0,0.2073]
[1725834575977,0.1445,55363.0,55362.0,0.2073]
[1725834576206,0.65492965,55363.0,55362.0,0.2073]
[1725834576721,0.24975382,55363.0,55362.0,0.2073]
[1725834577204,0.24975382,55363.0,55362.0,0.640809]
[1725834577205,0.02832517,55363.0,55362.0,0.640809]
[1725834577435,0.02832517,55363.0,55362.0,0.933445]
[1725834577852,0.03032517,55363.0,55362.0,0.933445]
[1725834578811,0.03032517,55363.0,55362.0,1.113645]
[1725834579290,0.02832517,55363.0,55362.0,1.113645]
[1725834579501,0.02932517,55363.0,55362.0,1.114645]
[1725834579936,0.22142865,55380.0,55379.0,0.144459]
[1725834580364,0.36588565,55380.0,55375.0,0.144467]
[1725834580569,0.22142865,55376.0,55374.0,0.00163]
[1725834580999,0.144472,55374.0,55373.0,0.00163]
[1725834581224,0.22142865,55376.0,55371.0,0.00063]
[1725834581225,0.144477,55372.0,55371.0,0.00063]
[1725834581433,0.144469,55375.0,55374.0,0.001632]
[1725834581640,0.65483665,55375.0,55374.0,0.001632]
[1725834582739,0.65483665,55375.0,55374.0,0.004632]
[1725834582999,0.66883665,55375.0,55374.0,0.004632]
[1725834583236,0.66883665,55375.0,55374.0,0.001632]
[1725834583453,0.65583665,55375.0,55374.0,0.009632]
[1725834583660,0.94377565,55375.0,55374.0,0.001632]
[1725834583865,1.36371465,55375.0,55374.0,0.001632]
[1725834584070,1.37471465,55375.0,55374.0,0.002632]
[1725834584293,1.37371465,55375.0,55374.0,0.001632]
[1725834584512,1.51137611,55375.0,55374.0,0.001632]
[1725834584722,1.37471465,55375.0,55374.0,0.009632]
[1725834585624,1.38371465,55375.0,55374.0,0.010632]
[1725834586131,1.37371465,55375.0,55374.0,0.001632]
[1725834586402,1.39371465,55375.0,55374.0,0.003632]
[1725834586661,1.38771465,55375.0,55374.0,0.002632]
[1725834586944,1.39371465,55375.0,55374.0,0.003632]
[1725834587238,1.39371465,55375.0,55374.0,0.002632]
[1725834587498,1.38571465,55375.0,55374.0,0.002632]
[1725834588034,1.92451511,55375.0,55374.0,0.002632]
[1725834588310,1.51204074,55375.0,55374.0,0.001632]
[1725834588842,1.52104074,55375.0,55374.0,0.002632]
[1725834589078,1.51204074,55375.0,55374.0,0.001632]
[1725834589311,1.66980282,55375.0,55374.0,0.001632]
[1725834589615,1.67880282,55375.0,55374.0,0.003632]
[1725834589811,1.68780282,55375.0,55374.0,0.003632]
[1725834590083,1.68780282,55375.0,55361.0,0.55430836]
[1725834590084,0.433509,55362.0,55361.0,0.55430836]
[1725834590326,0.65493765,55362.0,55361.0,0.55430836]
[1725834590563,0.433518,55361.0,55360.0,0.2058]
[1725834590802,0.423518,55361.0,55360.0,0.2058]
[1725834591502,0.25075712,55362.0,55360.0,0.2058]
[1725834591991,0.39626112,55362.0,55361.0,0.005]
[1725834592277,0.25175712,55362.0,55361.0,0.005]
[1725834592550,0.39626012,55362.0,55361.0,0.005]
[1725834592810,0.39526012,55362.0,55361.0,0.005]
[1725834593069,0.39526012,55362.0,55360.0,0.2058]
[1725834593070,0.145506,55361.0,55360.0,0.2118]
[1725834593306,0.144506,55361.0,55360.0,0.2108]
[1725834593791,0.433518,55361.0,55360.0,0.2108]
[1725834594214,0.433518,55361.0,55360.0,0.011]
[1725834594215,0.72353,55361.0,55360.0,0.011]
[1725834594432,1.04188473,55361.0,55360.0,0.011]
[1725834594651,1.04188473,55361.0,55360.0,0.006]
[1725834594652,1.26898473,55361.0,55360.0,0.006]
[1725834594861,1.27898473,55361.0,55360.0,0.006]
[1725834595893,1.27898473,55361.0,55356.0,0.00164]
[1725834595894,0.722582,55357.0,55356.0,0.00164]
[1725834596142,0.94401065,55357.0,55356.0,0.00164]
[1725834597410,0.94701065,55357.0,55356.0,0.00164]
[1725834597822,0.36894465,55357.0,55356.0,0.00164]
[1725834598030,0.37594465,55357.0,55356.0,0.20904]
[1725834598243,0.66497765,55357.0,55356.0,0.20904]
[1725834598676,0.65797765,55357.0,55356.0,0.20904]
[1725834598869,0.65797765,55357.0,55356.0,0.00164]
[1725834599099,0.23142865,55357.0,55356.0,0.00164]
[1725834599316,0.22842865,55357.0,55356.0,0.00164]
[1725834599533,0.007,55357.0,55356.0,0.17814]
[1725834599795,0.01,55357.0,55356.0,0.818197]
[1725834600040,0.02832847,55362.0,55357.0,0.289028]
[1725834600260,0.22142865,55359.0,55356.0,0.38464]
[1725834600487,0.02832847,55362.0,55361.0,0.289012]
[1725834600719,0.02832847,55362.0,55361.0,0.93016]
[1725834600915,0.000816,55375.0,55374.0,0.612046]
[1725834601133,0.000816,55375.0,55374.0,1.396934]
[1725834601347,0.000816,55375.0,55374.0,1.10799]
[1725834601766,0.000816,55375.0,55374.0,1.396934]
[1725834601986,0.000816,55383.0,55382.0,0.722255]
[1725834602194,0.000816,55383.0,55382.0,1.392357]
[1725834602411,0.000816,55383.0,55382.0,1.103455]
[1725834602621,0.000816,55383.0,55382.0,0.3782]
[1725834602829,0.000816,55383.0,55382.0,0.521651]
[1725834603012,0.000816,55383.0,55382.0,0.810553]
[1725834603254,0.000816,55383.0,55382.0,0.521651]
[1725834603482,0.000816,55383.0,55382.0,0.3772]
[1725834603704,0.434161,55383.0,55382.0,0.2159]
[1725834603910,0.434161,55383.0,55375.0,0.2208]
[1725834603911,0.433401,55376.0,55375.0,0.2208]
[1725834604136,0.65482965,55376.0,55375.0,0.2208]
[1725834604346,0.51036165,55376.0,55367.0,0.2208]
[1725834604552,0.22142865,55376.0,55371.0,0.144478]
[1725834604770,0.14447,55375.0,55368.0,0.144487]
[1725834604982,0.22142865,55376.0,55367.0,0.2208]
[1725834604983,0.02832313,55374.0,55367.0,0.2208]
[1725834605192,0.02832313,55374.0,55346.0,0.55430836]
[1725834605193,0.02832313,55374.0,55373.0,0.654223]
[1725834605402,0.02832313,55374.0,55373.0,0.943172]
[1725834605610,0.02832313,55374.0,55373.0,1.232121]
[1725834605820,0.001816,55383.0,55373.0,1.232121]
[1725834605821,0.000816,55383.0,55382.0,0.144451]
[1725834606073,0.007816,55383.0,55382.0,0.434353]
[1725834606264,0.144452,55382.0,55378.0,0.2118]
[1725834606483,0.22924465,55383.0,55378.0,0.2118]
[1725834606484,0.144456,55381.0,55378.0,0.2118]
[1725834606690,0.22924465,55383.0,55378.0,0.2118]
[1725834606691,0.22924465,55383.0,55379.0,0.144456]
[1725834606900,0.000816,55383.0,55378.0,0.2118]
[1725834607107,0.011816,55383.0,55382.0,0.001]
[1725834607378,0.23324465,55383.0,55382.0,0.001]
[1725834607524,0.011816,55383.0,55382.0,0.001]